Workbook

Sheet Expectation
B1: Exercises on Expectations
B3: Let X be a random variable with the distribution: | G3: x | H3: Pr(X=x)
G4: 1 | H4: 0.2
B5: What is E[X] ? | E5: =SUMPRODUCT(G4:G7,H4:H7) -> 2.75 | G5: 2 | H5: 0.15 | J5: =showformula(E5) -> =SUMPRODUCT(G4:G7,H4:H7)
G6: 3 | H6: 0.35
G7: 4 | H7: 0.3
B9: What is E[X2] ?
B11: The probability distribution of | G11: z | H11: Pr(Z=z)
B12: the random variable Z = X2 is | G12: =G4^2 -> 1 | H12: 0.2
G13: =G5^2 -> 4 | H13: 0.15
B14: and therefore E[X2] is | E14: =SUMPRODUCT(G12:G15,H12:H15) -> 8.75 | G14: =G6^2 -> 9 | H14: 0.35 | J14: =showformula(E14) -> =SUMPRODUCT(G12:G15,H12:H15)
G15: =G7^2 -> 16 | H15: 0.3
B16: Excel also allows us to do this
B17: calculation directly from the
B18: original distribution table: | E18: =SUMPRODUCT(G4:G7^2,H4:H7) -> 8.75 | J18: =showformula(E18) -> =SUMPRODUCT(G4:G7^2,H4:H7)
B20: Notice that E[X2] is not the same as ( E[X] )2 . | G20: =E5^2 -> 7.5625 | J20: =showformula(G20) -> =E5^2
B22: What's the cumulative probability distribution of X ? | G22: x | H22: Pr(X≤x)
G23: 1 | H23: =SUM($H$4:H4) -> 0.2
G24: 2 | H24: =SUM($H$4:H5) -> 0.35
G25: 3 | H25: =SUM($H$4:H6) -> 0.7
G26: 4 | H26: =SUM($H$4:H7) -> 1

Sheet LOOKUP
B1: The LOOKUP function
B3: The function =LOOKUP(value, lookup-range, result-range) looks for "value" in the
B4: "lookup-range," and returns the corresponding entry in the "result-range." It
B5: expects the entries in the lookup-range to be in increasing order, and if the value
B6: isn't found, it selects the last entry in the lookup-range which is less than the
B7: sought-for value.
E8: Please recall: Any colored tab
B9: Here's the IRS 2008 Individual tax table: | E9: is optional reading.
B11: taxable income | D11: taxes
B12: from … | C12: to … | D12: paid on excess | E12: plus
B13: 0 | C13: =B14 -> 8025 | D13: 0.1 | E13: 0
B14: 8025 | C14: =B15 -> 32550 | D14: 0.15 | E14: =D13*(C13-B13)+E13 -> 802.5
B15: 32550 | C15: =B16 -> 78850 | D15: 0.25 | E15: =D14*(C14-B14)+E14 -> 4481.25
B16: 78850 | C16: =B17 -> 164550 | D16: 0.28 | E16: =D15*(C15-B15)+E15 -> 16056.25
B17: 164550 | C17: =B18 -> 357700 | D17: 0.33 | E17: =D16*(C16-B16)+E16 -> 40052.25
B18: 357700 | D18: 0.35 | E18: =D17*(C17-B17)+E17 -> 103791.75
B21: 100000 | C21: taxable income
B23: =LOOKUP(B21,B13:B18,E13:E18) -> 16056.25 | C23: =showformula(B23) -> =LOOKUP(B21,B13:B18,E13:E18)
B24: =LOOKUP(B21,B13:B18) -> 78850 | C24: =showformula(B24) -> =LOOKUP(B21,B13:B18)
B25: =LOOKUP(B21,B13:B18,D13:D18) -> 0.28 | C25: =showformula(B25) -> =LOOKUP(B21,B13:B18,D13:D18)
B27: =B23+(B21-B24)*B25 -> 21978.25 | C27: taxes | D27: =showformula(B27) -> =B23+(B21-B24)*B25
B29: The formula in cell B23 looks in the range B13:B18 for the value $100,000. The last
B30: entry less than or equal to this is the fourth, so the fourth entry in E13:E18 is
B31: returned. The formula in cell B24 shows a variant of the LOOKUP function: If the
B32: result-range is not specified, it's assumed to be the same as the lookup-range.

Sheet Simulation
B1: Simulating a Random Variable, Using its Tabulated Distribution
B3: How could we build a spreadsheet cell which simulates X ?
B5: One way is to use Excel's "lookup" function. We need a table
B6: containing the cumulative distribution of X.
J7: cumulative
B8: =LOOKUP(RAND(),J9:J12,H10:H13) -> 3 | C8: simulated value of X | H8: distribution | J8: Pr(X≤x)
C9: =showformula(B8) -> =LOOKUP(RAND(),J9:J12,H10:H13) | H9: x | I9: Pr(X=x) | J9: 0
H10: 1 | I10: 0.2 | J10: 0.2
H11: 2 | I11: 0.15 | J11: 0.35
B12: Notice the offset in the two ranges: If, for example, | H12: 3 | I12: 0.35 | J12: 0.7
B13: RAND() takes the value 0.4527, the third value in the | H13: 4 | I13: 0.3 | J13: 1
B14: range J9:J12 (35%) is the final entry which is less than
B15: or equal to 0.4527, and therefore the third value in the
B16: range H10:H13 (3) is returned. The same value (3) will
B17: be returned whenever RAND() is at least 0.35 and less
B18: than 0.70, i.e., 35% of the time.
B20: Let's test this simulation.
F21: estimated E[X]
B22: is X=1? | C22: is X=2? | D22: is X=3? | E22: is X=4?
B23: =IF(B8=1,1,0) -> 0 | C23: =IF(B8=2,1,0) -> 0 | D23: =IF(B8=3,1,0) -> 1 | E23: =IF(B8=4,1,0) -> 0
B25: =ADDRESS(ROW($B$23),COLUMN($B$23)) -> $B$23 | C25: =ADDRESS(ROW($C$23),COLUMN($C$23)) -> $C$23 | D25: =ADDRESS(ROW($D$23),COLUMN($D$23)) -> $D$23 | E25: =ADDRESS(ROW($E$23),COLUMN($E$23)) -> $E$23 | F25: =ADDRESS(ROW($B$8),COLUMN($B$8)) -> $B$8 | G25: monitored cell
B26: 0.2004 | C26: 0.14974 | D26: 0.3511 | E26: 0.29876 | F26: 2.74822 | G26: mean
B27: 0.4003016892 | C27: 0.3568181688 | D27: 0.4773165284 | E27: 0.4577166781 | F27: 1.089366191 | G27: sample standard deviation
B28: 0 | C28: 0 | D28: 0 | E28: 0 | F28: 1 | G28: minimum
B29: 1 | C29: 1 | D29: 1 | E29: 1 | F29: 4 | G29: maximum
B30: 100000 | C30: 100000 | D30: 100000 | E30: 100000 | F30: 100000 | G30: number of simulation runs
B32: =1.96*B27/SQRT(B30) -> 0.002481095575 | C32: =1.96*C27/SQRT(C30) -> 0.002211581923 | D32: =1.96*D27/SQRT(D30) -> 0.002958438494 | E32: =1.96*E27/SQRT(E30) -> 0.002836957363 | F32: =1.96*F27/SQRT(F30) -> 0.006751961606 | G32: margin of error (95% confidence)
H38: `

Sheet Conditional expectation
B1: Conditional Expectation
B3: What is E[ X | X is even ]? | H3: x | I3: Pr(X=x)
H4: 1 | I4: 0.2
B5: Given that X is even, the conditional probability distribution | H5: 2 | I5: 0.15
B6: of X is: | H6: 3 | I6: 0.35
C7: x | D7: Pr(X=x) | H7: 4 | I7: 0.3
C8: 2 | D8: =I5/(I5+I7) -> 0.3333333333
C9: 4 | D9: =I7/(I5+I7) -> 0.6666666667
B11: Therefore, E[ X | X is even ] is | E11: =SUMPRODUCT(C8:C9,D8:D9) -> 3.333333333
B13: What is E[ X | X is odd ]?
B15: Given that X is odd, the conditional probability distribution
B16: of X is:
C17: x | D17: Pr(X=x)
C18: 1 | D18: =I4/(I4+I6) -> 0.3636363636
C19: 3 | D19: =I6/(I4+I6) -> 0.6363636364
B21: Therefore, E[ X | X is odd ] is | E21: =SUMPRODUCT(C18:C19,D18:D19) -> 2.272727273
B23: What is E[X] ?
B25: Directly, it's | D25: =SUMPRODUCT(H4:H7,I4:I7) -> 2.75
B27: But we can also work it out "case by case."
B29: E[X] = E[ X | X is even ]∙Pr( X is even ) + E[ X | X is odd ]∙Pr( X is odd )
B31: and this yields | D31: =E11*(I5+I7)+E21*(I4+I6) -> 2.75

Sheet A joint distribution
B1: Joint Probability Distributions
B3: The joint distribution of two (or more) random variables indicates the likelihood of
B4: the variables taking any particular combination of values.
E6: X
E7: 2 | F7: 3 | G7: 5 | H7: 15
C8: Y | D8: 10 | E8: 0.05 | F8: 0.12 | G8: 0.03 | H8: 0.18
D9: 20 | E9: 0.02 | F9: 0.07 | G9: 0.08 | H9: 0.09
D10: 30 | E10: 0.14 | F10: 0.13 | G10: 0 | H10: 0.09
I11: =SUM(E8:H10) -> 1 | K11: necessarily 100%
B12: The table indicates, for example, that Pr( X=3, Y=30 ) = 13% .
B16: What is the (marginal) probability distribution of X ? | G16: x | H16: Pr(X=x)
G17: 2 | H17: =SUM(E8:E10) -> 0.21 | I17: =showformula(H17) -> =SUM(E8:E10)
G18: 3 | H18: =SUM(F8:F10) -> 0.32 | I18: =showformula(H18) -> =SUM(F8:F10)
B19: The marginal distributions of both X and Y | G19: 5 | H19: =SUM(G8:G10) -> 0.11 | I19: =showformula(H19) -> =SUM(G8:G10)
B20: can, of course, be written at the "margins" | G20: 15 | H20: =SUM(H8:H10) -> 0.36 | I20: =showformula(H20) -> =SUM(H8:H10)
B21: of the joint-distribution table:
E23: X
E24: 2 | F24: 3 | G24: 5 | H24: 15
C25: Y | D25: 10 | E25: 0.05 | F25: 0.12 | G25: 0.03 | H25: 0.18 | I25: =SUM(E25:H25) -> 0.38 | J25: =showformula(I25) -> =SUM(E25:H25)
D26: 20 | E26: 0.02 | F26: 0.07 | G26: 0.08 | H26: 0.09 | I26: =SUM(E26:H26) -> 0.26 | J26: =showformula(I26) -> =SUM(E26:H26)
D27: 30 | E27: 0.14 | F27: 0.13 | G27: 0 | H27: 0.09 | I27: =SUM(E27:H27) -> 0.36 | J27: =showformula(I27) -> =SUM(E27:H27)
E28: =SUM(E25:E27) -> 0.21 | F28: =SUM(F25:F27) -> 0.32 | G28: =SUM(G25:G27) -> 0.11 | H28: =SUM(H25:H27) -> 0.36
B30: What is Pr( X = 3 | Y = 10 ) ?
B32: By definition, Pr( X = 3 | Y = 10 ) = Pr( X = 3 and Y = 10 ) / Pr( Y = 10 ) = | I32: =F25/I25 -> 0.3157894737 | J32: =showformula(I32) -> =F25/I25
B34: What is the probability distribution of X+Y ?
B36: Z = X+Y is a random variable with the probability distribution: | H36: z | I36: Pr(Z=z)
H37: 12 | I37: =E25 -> 0.05 | J37: =showformula(I37) -> =E25
B38: What is E[ X+Y] ? | H38: 13 | I38: =F25 -> 0.12 | J38: =showformula(I38) -> =F25
H39: 15 | I39: =G25 -> 0.03 | J39: =G25
B40: From the table to the right: | E40: =SUMPRODUCT(H37:H46,I37:I46) -> 27.13 | H40: 22 | I40: =E26 -> 0.02 | J40: =E26
B41: Equivalently, since | H41: 23 | I41: =F26 -> 0.07 | J41: =F26
B42: E[ X+Y] = E[X] + E[Y] , | E42: =SUMPRODUCT(E24:H24,E28:H28)+SUMPRODUCT(D25:D27,I25:I27) -> 27.13 | H42: 25 | I42: =H25+G26 -> 0.26 | J42: =H25+G26
H43: 32 | I43: =E27 -> 0.14 | J43: =E27
H44: 33 | I44: =F27 -> 0.13 | J44: =F27
B45: For any random variables X and Y , | H45: 35 | I45: =H26+G27 -> 0.09 | J45: =H26+G27
B46: E[ X+Y ] = E[X] + E[Y] . | H46: 45 | I46: =H27 -> 0.09 | J46: =H27
I47: =SUM(I37:I46) -> 1 | K47: necessarily 100%
B49: What is E[ XY ] ?
B51: We could build a table for the distribution of W = XY , and then compute the expected
B52: value from that table. An Excel "array" formula does precisely the same arithmetic
B53: without requiring the intermediate step: | F53: =SUM(E24:H24*D25:D27*E25:H27) -> 133.7 | G53: {=SUM(E24:H24*D25:D27*E25:H27)} | K53: As is explained on the next tab, this formula was
K54: entered by typing Ctrl+Shift+Enter.
B55: Notice that E[X]∙E[Y] is | F55: =SUMPRODUCT(E24:H24,E28:H28)*SUMPRODUCT(D25:D27,I25:I27) -> 145.134
K56: Excel automatically expanded E24:H24 to
B57: E[XY] is not necessarily equal to E[X]∙E[Y] !
K58: 2 | L58: 3 | M58: 5 | N58: 15
K59: 2 | L59: 3 | M59: 5 | N59: 15
K60: 2 | L60: 3 | M60: 5 | N60: 15
K62: It also expanded D25:D27 to
K64: 10 | L64: 10 | M64: 10 | N64: 10
K65: 20 | L65: 20 | M65: 20 | N65: 20
K66: 30 | L66: 30 | M66: 30 | N66: 30
K68: Finally, it copied
K70: 0.05 | L70: 0.12 | M70: 0.03 | N70: 0.18
K71: 0.02 | L71: 0.07 | M71: 0.08 | N71: 0.09
K72: 0.14 | L72: 0.13 | M72: 0 | N72: 0.09
K74: It then did the indicated arithmetic on a cell-by-cell basis:
K76: =K58*K64*K70 -> 1 | L76: =L58*L64*L70 -> 3.6 | M76: =M58*M64*M70 -> 1.5 | N76: =N58*N64*N70 -> 27
K77: =K59*K65*K71 -> 0.8 | L77: 4.2 | M77: 8 | N77: 27
K78: =K60*K66*K72 -> 8.4 | L78: =L60*L66*L72 -> 11.7 | M78: =M60*M66*M72 -> 0 | N78: =N60*N66*N72 -> 40.5
K80: And it applied the SUM function to this entire array:
L82: =SUM(K76:N78) -> 133.7

Sheet Array formulas
B1: Working with Array Formulas (an optional Excel skill)
B3: The SUMPRODUCT function returns the | F3: x | G3: Pr( X = x )
B4: sum of the products of matching terms | F4: 1 | G4: 0.2
B5: in two (or more) lists. For example, the | F5: 2 | G5: 0.5 | I5: Convention: A colored tab at the bottom of
B6: expected value of X, given the probability | F6: 5 | G6: 0.3 | I6: a page indicates optional material.
B7: distribution at the right, is
B9: =SUMPRODUCT(F4:F6,G4:G6) -> 2.7 | C9: =SUMPRODUCT(F4:F6,G4:G6)
B11: However, there's a slicker way to do the same calculation:
B13: =SUM(F4:F6*G4:G6) -> 2.7 | C13: =SUM(F4:F6*G4:G6), entered as an array formula.
B15: Array formulas are very powerful ... and potentially somewhat confusing.
B17: An "array" has some number of rows, and some number of columns. In an
B18: array formula, Excel finds the largest number of rows, R, in any array in the
B19: formula, and the largest number of columns, C. It then expands any array
B20: that is smaller than R-by-C in one of two ways. If R or C is 1, it copies the
B21: single row or column to fill an entire R-by-C array. Otherwise, it adds extra
B22: cells with the value NA (not available).
B24: Then it does all the arithmetic on a cell-by-cell basis. And it
B25: evaluates any formulas that take array inputs using the resulting
B26: array as the input.
C28: 1 | D28: 2 | E28: 3
B29: 4 | C29: =C28:E28*B29:B31 -> 4 | D29: 8 | E29: 12
B30: 5 | C30: 5 | D30: 10 | E30: 15
B31: 6 | C31: 6 | D31: 12 | E31: 18 | F31: =SUM(C28:E28*B29:B31) -> 90
B33: All nine cells inside the box are part of the same array,
B34: defined by the single formula: | E34: {=C28:E28*B29:B31}
B36: The formula was entered as an array formula. First, I
B37: highlighted C29:E31. Then I typed =C28:E28*B29:B31, and
B38: entered the formula by pressing Cntrl+Shift+Enter.
B40: What Excel did was determine R = 3 (the number of rows in
B41: B29:B31) and C = 3 (the number of columns in C28:E28).
B42: It expanded B29:B31 into
C44: 4 | D44: 4 | E44: 4
C45: 5 | D45: 5 | E45: 5
C46: 6 | D46: 6 | E46: 6
B48: and C28:E28 into
C50: 1 | D50: 2 | E50: 3
C51: 1 | D51: 2 | E51: 3
C52: 1 | D52: 2 | E52: 3
B54: Then it computed the products of matching cells, and put them
B55: into the space allocated to the array formula.
B57: The formula in F31 is =SUM(C28:E28*B29:B31), again entered
B58: by pressing Cntrl+Shift+Enter.

Sheet Independence
B1: Independent Random Variables
B3: X and Y are independent if knowledge of the value of one doesn't affect your
B4: assessment of the likelihood of the other taking any specific value. In the previous
B5: example, X and Y were not independent.
E6: X
E7: 2 | F7: 3 | G7: 5 | H7: 15
C8: Y | D8: 10 | E8: 0.05 | F8: 0.12 | G8: 0.03 | H8: 0.18 | I8: =SUM(E8:H8) -> 0.38
D9: 20 | E9: 0.02 | F9: 0.07 | G9: 0.08 | H9: 0.09 | I9: =SUM(E9:H9) -> 0.26
D10: 30 | E10: 0.14 | F10: 0.13 | G10: 0 | H10: 0.09 | I10: =SUM(E10:H10) -> 0.36
E11: =SUM(E8:E10) -> 0.21 | F11: =SUM(F8:F10) -> 0.32 | G11: =SUM(G8:G10) -> 0.11 | H11: =SUM(H8:H10) -> 0.36
B13: Show that X and Y , defined by the joint distribution above, are not independent.
B15: It takes only a single example to show this: | F15: Pr( X=2 ) = | H15: =E11 -> 0.21
F16: Pr( X=2 | Y=10) = | H16: =E8/I8 -> 0.1315789474
B18: If X and Y are independent, then Pr( X=x )∙Pr( Y=y ) = Pr( X=x and Y=y ) for
B19: every pair of values x and y .
E21: U
E22: 2 | F22: 3 | G22: 5 | H22: 15
C23: V | D23: 10 | E23: =E$26*$I23 -> 0.0798 | F23: =F$26*$I23 -> 0.1216 | G23: 0.0418 | H23: 0.1368 | I23: 0.38
D24: 20 | E24: =E$26*$I24 -> 0.0546 | F24: 0.0832 | G24: 0.0286 | H24: 0.0936 | I24: 0.26
D25: 30 | E25: =E$26*$I25 -> 0.0756 | F25: 0.1152 | G25: 0.0396 | H25: 0.1296 | I25: 0.36
E26: 0.21 | F26: 0.32 | G26: 0.11 | H26: 0.36
B28: U and V have the same marginal distributions as do X and Y , respectively, but U and V
B29: are independent random variables.
B31: The marginal distributions of X and Y separately convey no information
B32: concerning whether or not X and Y are independent.
B35: Compute E[ UV ] and E[U]∙E[V] .
B37: E[ UV ] = | D37: =SUM(E22:H22*D23:D25*E23:H25) -> 145.134
B38: E[U]∙E[V] = | D38: =SUMPRODUCT(E22:H22,E26:H26)*SUMPRODUCT(D23:D25,I23:I25) -> 145.134
B40: These two quantities are equal whenever U and V are independent.
B41: But, just because these two amounts are equal, we can't conclude that
B42: U and V are independent!
E43: S
E44: 2 | F44: 3 | G44: 5 | H44: 15
C45: T | D45: 10 | E45: 0.21 | F45: 0.02210379017 | G45: 0 | H45: 0.1478962098 | I45: 0.38
D46: 20 | E46: 0 | F46: 0.130667999 | G46: 0.02648930484 | H46: 0.1028426962 | I46: 0.26
D47: 30 | E47: 0 | F47: 0.1672282109 | G47: 0.08351069516 | H47: 0.109261094 | I47: 0.36
E48: 0.21 | F48: 0.32 | G48: 0.11 | H48: 0.36
B50: E[ ST ] = | D50: =SUM(E44:H44*D45:D47*E45:H47) -> 145.134
B51: E[S]∙E[T] = | D51: =SUMPRODUCT(E44:H44,E48:H48)*SUMPRODUCT(D45:D47,I45:I47) -> 145.134
B53: But S and T are certainly not independent.
B55: And, of course, we saw a few tabs ago that
B57: E[ XY ] = | D57: 133.7
B58: E[X]∙E[Y] = | D58: 145.134
H59: x | I59: Pr(X=x)
B60: From the very first tab (with X having a different distribution): | H60: 1 | I60: 0.2
H61: 2 | I61: 0.15
H62: 3 | I62: 0.35
B63: Let Y = X , so the joint distribution is | H63: 4 | I63: 0.3
E64: X
E65: 1 | F65: 2 | G65: 3 | H65: 4
C66: Y | D66: 1 | E66: 0.2 | F66: 0 | G66: 0 | H66: 0 | I66: =SUM(E66:H66) -> 0.2
D67: 2 | E67: 0 | F67: 0.15 | G67: 0 | H67: 0 | I67: =SUM(E67:H67) -> 0.15
D68: 3 | E68: 0 | F68: 0 | G68: 0.35 | H68: 0 | I68: =SUM(E68:H68) -> 0.35
D69: 4 | E69: 0 | F69: 0 | G69: 0 | H69: 0.3 | I69: =SUM(E69:H69) -> 0.3
E70: =SUM(E66:E69) -> 0.2 | F70: =SUM(F66:F69) -> 0.15 | G70: =SUM(G66:G69) -> 0.35 | H70: =SUM(H66:H69) -> 0.3
B72: Then (as we've already computed)
B74: E[ XY ] = E[ X2 ] = | E74: =SUM(E65:H65*D66:D69*E66:H69) -> 8.75
B75: E[X]∙E[Y] = ( E[X] )2 = | E75: =SUMPRODUCT(H60:H63*I60:I63)^2 -> 7.5625
B78: In summary:
B80: If X and Y are independent, then E[ XY ] = E[X]∙E[Y] .
B82: E[ XY ] = E[X]∙E[Y] may be true even when X and Y are not independent.
B84: In general, any of E[ XY ] < E[X]∙E[Y] , E[ XY ] = E[X]∙E[Y] , or E[ XY ] > E[X]∙E[Y]
B85: might be true.

Sheet Plant expansion
B1: Comparing Plant Expansions
B3: The J.R. Ryland Computer company is considering a plant expansion that will enable
B4: the company to begin production of a new computer product. The company’s president
B5: must determine whether to make the expansion a medium- or large-scale project. An
B6: uncertainty is the demand for the new product, which for planning purposes may be low
B7: demand, medium demand, or high demand. The probability estimates for demand are
B8: 0.20, 0.50, and 0.30. respectively. Writing the annual profit in $000s, the firm’s planners
B9: have developed the following profit forecast for the medium- and large-scale expansion
B10: projects.
E11: medium-scale expansion profits | G11: large-scale expansion profits
F13: Prob | H13: Prob
D14: low | E14: 50 | F14: 0.2 | G14: 0 | H14: 0.2
C15: demand | D15: medium | E15: 150 | F15: 0.5 | G15: 100 | H15: 0.5
D16: high | E16: 200 | F16: 0.3 | G16: 300 | H16: 0.3
B19: Compute the expected value for the profit associated with the two expansion
B20: alternatives. Which decision is preferred if the objective is to maximize
B21: expected profit?
F22: expansion profits
D23: probability | F23: medium | G23: large
D24: 0.2 | E24: low | F24: 50 | G24: 0
C25: demand | D25: 0.5 | E25: medium | F25: 150 | G25: 100
D26: 0.3 | E26: high | F26: 200 | G26: 300
B28: Answer: | E28: expected profit | F28: =SUMPRODUCT($D$24:$D$26,F24:F26) -> 145 | G28: =SUMPRODUCT($D$24:$D$26,G24:G26) -> 140
B30: Note that the profit numbers themselves are, in reality, expectations - the expected
B31: profit (in the face of current uncertainty about future interest rates, energy prices, and
B32: the like) when demand is low, medium, or high - and our actual calculations above are
B33: actually of the form:
B35: E[profit] = | C35: E[ profit | low demand ]∙Pr( low demand )
C36: + E[ profit } medium demand ]∙Pr( medium demand )
C37: + E[ profit | high demand ]∙Pr( high demand ) .

Sheet Hairy Houdini
B1: It's a Kind of Magic
B3: Hairy Houdini, a hirsute magician, uses his long beard to conceal the machinations
B4: behind his tricks. His final trick is to “magically” create a number of pigeons that he
B5: releases into the air. (Really, they’re hidden in a pouch behind his beard.) Each time he
B6: attempts another release, he knows there’s a 90% he’ll successfully fool the audience.
B7: He figures, on the basis of past experience, that his end-of-show tips will add up to
B8: about $10 for each successful release if he fools the audience every time. However, if he
B9: fails to fool the audience on any release, the show will end immediately, and he’ll only
B10: receive about $6 in tips for each successful release. How many pigeons should he try to
B11: release (i.e., after how many consecutive successes should he stop voluntarily –
B12: equivalently, how many pigeons should he put in the pouch before his act)?
B14: Hint: This is not a "single-period inventory" problem. However, it yields to either a
B15: marginal-analysis approach, or brute force.
B17: The answer is on the next tab.

Sheet Answer
B1: It's a Kind of Magic (answer)
B3: 23 | C3: pigeons
B5: Approach 1 (marginal analysis): | G5: Approach 2 (brute force):
B6: given k successful releases, expected marginal profit from trying for one more | K6: n | L6: E[profit]
H7: put n pigeons in pouch | K7: 23 | L7: =SUMPRODUCT(H10:H49,I10:I49) -> 57.36791649
H8: Pr( fail first on
C9: k | G9: k | H9: pigeon k ) | I9: profit | K9: n | L9: =L7 -> 57.36791649
C10: 1 | D10: =0.9*10+0.1*((-4)*C10) -> 8.6 | G10: 1 | H10: =(0.9)^(G10-1)*0.1 -> 0.1 | I10: =IF(G10<=$K$7,6*(G10-1),10*$K$7) -> 0 | K10: 1 | L10: 9
C11: 2 | D11: 8.2 | G11: 2 | H11: 0.09 | I11: 6 | K11: 2 | L11: 16.74
C12: 3 | D12: 7.8 | G12: 3 | H12: 0.081 | I12: 12 | K12: 3 | L12: 23.382
C13: 4 | D13: 7.4 | G13: 4 | H13: 0.0729 | I13: 18 | K13: 4 | L13: 29.0682
C14: 5 | D14: 7 | G14: 5 | H14: 0.06561 | I14: 24 | K14: 5 | L14: 33.92334
C15: 6 | D15: 6.6 | G15: 6 | H15: 0.059049 | I15: 30 | K15: 6 | L15: 38.05677
C16: 7 | D16: 6.2 | G16: 7 | H16: 0.0531441 | I16: 36 | K16: 7 | L16: 41.5642806
C17: 8 | D17: 5.8 | G17: 8 | H17: 0.04782969 | I17: 42 | K17: 8 | L17: 44.52972138
C18: 9 | D18: 5.4 | G18: 9 | H18: 0.043046721 | I18: 48 | K18: 9 | L18: 47.0264312
C19: 10 | D19: 5 | G19: 10 | H19: 0.0387420489 | I19: 54 | K19: 10 | L19: 49.11850184
C20: 11 | D20: 4.6 | G20: 11 | H20: 0.03486784401 | I20: 60 | K20: 11 | L20: 50.86189404
C21: 12 | D21: 4.2 | G21: 12 | H21: 0.03138105961 | I21: 66 | K21: 12 | L21: 52.30542278
C22: 13 | D22: 3.8 | G22: 13 | H22: 0.02824295365 | I22: 72 | K22: 13 | L22: 53.49162683
C23: 14 | D23: 3.4 | G23: 14 | H23: 0.02541865828 | I23: 78 | K23: 14 | L23: 54.45753585
C24: 15 | D24: 3 | G24: 15 | H24: 0.02287679245 | I24: 84 | K24: 15 | L24: 55.23534679
C25: 16 | D25: 2.6 | G25: 16 | H25: 0.02058911321 | I25: 90 | K25: 16 | L25: 55.85302019
C26: 17 | D26: 2.2 | G26: 17 | H26: 0.01853020189 | I26: 96 | K26: 17 | L26: 56.33480544
C27: 18 | D27: 1.8 | G27: 18 | H27: 0.0166771817 | I27: 102 | K27: 18 | L27: 56.70170344
C28: 19 | D28: 1.4 | G28: 19 | H28: 0.01500946353 | I28: 108 | K28: 19 | L28: 56.97187378
C29: 20 | D29: 1 | G29: 20 | H29: 0.01350851718 | I29: 114 | K29: 20 | L29: 57.16099302
C30: 21 | D30: 0.6 | G30: 21 | H30: 0.01215766546 | I30: 120 | K30: 21 | L30: 57.28256967
C31: 22 | D31: 0.2 | G31: 22 | H31: 0.01094189891 | I31: 126 | K31: 22 | L31: 57.34822107
C32: 23 | D32: -0.2 | G32: 23 | H32: 0.009847709022 | I32: 132 | K32: 23 | L32: 57.36791649
C33: 24 | D33: -0.6 | G33: 24 | H33: 0.00886293812 | I33: 230 | K33: 24 | L33: 57.35019061
C34: 25 | D34: -1 | G34: 25 | H34: 0.007976644308 | I34: 230 | K34: 25 | L34: 57.30233074
G35: 26 | H35: 0.007178979877 | I35: 230 | K35: 26 | L35: 57.23054094
G36: 27 | H36: 0.006461081889 | I36: 230 | K36: 27 | L36: 57.1400858
G37: 28 | H37: 0.0058149737 | I37: 230 | K37: 28 | L37: 57.03541627
G38: 29 | H38: 0.00523347633 | I38: 230 | K38: 29 | L38: 56.92027979
G39: 30 | H39: 0.004710128697 | I39: 230 | K39: 30 | L39: 56.79781645
G40: 31 | H40: 0.004239115828 | I40: 230 | K40: 31 | L40: 56.67064297
G41: 32 | H41: 0.003815204245 | I41: 230 | K41: 32 | L41: 56.54092603
G42: 33 | H42: 0.00343368382 | I42: 230 | K42: 33 | L42: 56.41044604
G43: 34 | H43: 0.003090315438 | I43: 230 | K43: 34 | L43: 56.28065279
G44: 35 | H44: 0.002781283894 | I44: 230 | K44: 35 | L44: 56.15271373
G45: 36 | H45: 0.002503155505 | I45: 230 | K45: 36 | L45: 56.02755596
G46: 37 | H46: 0.002252839954 | I46: 230 | K46: 37 | L46: 55.9059026
G47: 38 | H47: 0.002027555959 | I47: 230 | K47: 38 | L47: 55.78830436
G48: 39 | H48: 0.001824800363 | I48: 230 | K48: 39 | L48: 55.67516673
G49: 40 or more | H49: =1-SUM(H10:H48) -> 0.01642320327 | I49: 230
G51: if we wish to examine cases involving the release of 40 pigeons or more, this table must be extended.

Sheet Answer via simulation
B1: Answer via Simulation
B3: release | C3: still going? | D3: success on this try? | E3: first failure on this try | G3: =MAX(E5:E54) -> 3 | H3: time of first failure (and 0 if he succeeds at least 50 times)
B4: release | G4: =IF(G3=0,51,G3) -> 3 | H4: time of first failure (set to 51 if the first 50 releases succeed)
B5: 1 | C5: 1 | D5: =IF(RAND()<=0.9,1,0) -> 1 | E5: =IF(C5=1,IF(D5=0,B5,0),0) -> 0
B6: 2 | C6: =IF(C5=1,IF(D5=1,1,0),0) -> 1 | D6: =IF(RAND()<=0.9,1,0) -> 1 | E6: =IF(C6=1,IF(D6=0,B6,0),0) -> 0 | G6: 5 | H6: 10 | I6: 15 | J6: 20 | K6: 25 | L6: 30 | M6: 35 | N6: 40 | O6: 45 | P6: 50
B7: 3 | C7: 1 | D7: 0 | E7: 3 | G7: =IF(G6<$G$4,10*G6,6*($G$4-1)) -> 12 | H7: 12 | I7: 12 | J7: 12 | K7: 12 | L7: 12 | M7: 12 | N7: 12 | O7: 12 | P7: 12
B8: 4 | C8: 0 | D8: 1 | E8: 0
B9: 5 | C9: 0 | D9: 1 | E9: 0 | G9: =ADDRESS(ROW($G$7),COLUMN($G$7)) -> $G$7 | H9: =ADDRESS(ROW($H$7),COLUMN($H$7)) -> $H$7 | I9: =ADDRESS(ROW($I$7),COLUMN($I$7)) -> $I$7 | J9: =ADDRESS(ROW($J$7),COLUMN($J$7)) -> $J$7 | K9: =ADDRESS(ROW($K$7),COLUMN($K$7)) -> $K$7 | L9: =ADDRESS(ROW($L$7),COLUMN($L$7)) -> $L$7 | M9: =ADDRESS(ROW($M$7),COLUMN($M$7)) -> $M$7 | N9: =ADDRESS(ROW($N$7),COLUMN($N$7)) -> $N$7 | O9: =ADDRESS(ROW($O$7),COLUMN($O$7)) -> $O$7 | P9: =ADDRESS(ROW($P$7),COLUMN($P$7)) -> $P$7 | Q9: monitored cell
B10: 6 | C10: 0 | D10: 1 | E10: 0 | G10: 33.89062 | H10: 48.96534 | I10: 55.0125 | J10: 56.80038 | K10: 56.88372 | L10: 56.50344 | M10: 55.87134 | N10: 55.21308 | O10: 54.77022 | P10: 54.46288 | Q10: mean
B11: 7 | C11: 0 | D11: 1 | E11: 0 | G11: 20.06362135 | H11: 39.57023397 | I11: 52.80556607 | J11: 60.29258548 | K11: 63.83129721 | L11: 65.24754157 | M11: 64.9463513 | N11: 63.59328265 | O11: 62.36837996 | P11: 61.27923705 | Q11: sample standard deviation
B12: 8 | C12: 0 | D12: 1 | E12: 0 | G12: 0 | H12: 0 | I12: 0 | J12: 0 | K12: 0 | L12: 0 | M12: 0 | N12: 0 | O12: 0 | P12: 0 | Q12: minimum
B13: 9 | C13: 0 | D13: 1 | E13: 0 | G13: 50 | H13: 100 | I13: 150 | J13: 200 | K13: 250 | L13: 300 | M13: 350 | N13: 400 | O13: 450 | P13: 500 | Q13: maximum
B14: 10 | C14: 0 | D14: 1 | E14: 0 | G14: 100000 | H14: 100000 | I14: 100000 | J14: 100000 | K14: 100000 | L14: 100000 | M14: 100000 | N14: 100000 | O14: 100000 | P14: 100000 | Q14: number of simulation runs
B15: 11 | C15: 0 | D15: 1 | E15: 0
B16: 12 | C16: 0 | D16: 1 | E16: 0 | G16: =1.96*G11/SQRT(G14) -> 0.1243556135 | H16: =1.96*H11/SQRT(H14) -> 0.2452588511 | I16: 0.3272922894 | J16: 0.3736973164 | K16: 0.395630479 | L16: 0.4044084524 | M16: 0.4025416558 | N16: 0.3941552494 | O16: 0.3865632239 | P16: 0.3798126462 | Q16: margin of error (95% confidence)
B17: 13 | C17: 0 | D17: 1 | E17: 0
B18: 14 | C18: 0 | D18: 1 | E18: 0
B19: 15 | C19: 0 | D19: 1 | E19: 0
B20: 16 | C20: 0 | D20: 1 | E20: 0
B21: 17 | C21: 0 | D21: 1 | E21: 0
B22: 18 | C22: 0 | D22: 1 | E22: 0
B23: 19 | C23: 0 | D23: 1 | E23: 0
B24: 20 | C24: 0 | D24: 1 | E24: 0
B25: 21 | C25: 0 | D25: 1 | E25: 0
B26: 22 | C26: 0 | D26: 1 | E26: 0
B27: 23 | C27: 0 | D27: 1 | E27: 0
B28: 24 | C28: 0 | D28: 1 | E28: 0
B29: 25 | C29: 0 | D29: 1 | E29: 0
B30: 26 | C30: 0 | D30: 1 | E30: 0
B31: 27 | C31: 0 | D31: 1 | E31: 0
B32: 28 | C32: 0 | D32: 1 | E32: 0
B33: 29 | C33: 0 | D33: 1 | E33: 0
B34: 30 | C34: 0 | D34: 1 | E34: 0
B35: 31 | C35: 0 | D35: 1 | E35: 0
B36: 32 | C36: 0 | D36: 1 | E36: 0
B37: 33 | C37: 0 | D37: 1 | E37: 0
B38: 34 | C38: =IF(C37=1,IF(D37=1,1,0),0) -> 0 | D38: 1 | E38: 0
B39: 35 | C39: 0 | D39: 1 | E39: 0
B40: 36 | C40: 0 | D40: 1 | E40: 0
B41: 37 | C41: 0 | D41: 1 | E41: 0 | G41: The expected profit curve appears to top out somewhere between 20 and 25 releases.
B42: 38 | C42: 0 | D42: 1 | E42: 0
B43: 39 | C43: 0 | D43: 1 | E43: 0 | G43: We'll see in a while that the expected number of successful releases before the
B44: 40 | C44: 0 | D44: 1 | E44: 0 | G44: first failure is 9.0. Therefore, the expected profit, as the planned number of releases
B45: 41 | C45: 0 | D45: 1 | E45: 0 | G45: grows larger and larger, is heading for $6∙9.0 = | L45: =6*(1/0.1-1) -> 54
B46: 42 | C46: 0 | D46: 1 | E46: 0 | G46: (since, if he plans a large number of releases, he'll just about definitely end his
B47: 43 | C47: 0 | D47: 1 | E47: 0 | G47: act with a failure).
B48: 44 | C48: 0 | D48: 1 | E48: 0
B49: 45 | C49: 0 | D49: 1 | E49: 0
B50: 46 | C50: 0 | D50: 1 | E50: 0
B51: 47 | C51: 0 | D51: 1 | E51: 0
B52: 48 | C52: 0 | D52: 1 | E52: 0
B53: 49 | C53: 0 | D53: 1 | E53: 0
B54: 50 | C54: 0 | D54: 1 | E54: 0
